[Event "*** Titled Tuesday Blitz"]
[Site "Chess.com"]
[Date "2020.11.24"]
[Round "3"]
[White "ViktoriyaTarasova"]
[Black "JustKid"]
[Result "1-0"]
[WhiteElo "2287"]
[BlackElo "2495"]
[TimeControl "180+1"]
[EndTime "10:44:16 PST"]
[Termination "ViktoriyaTarasova won on time"]

1. d4 {[%clk 0:03:00.9]} 1... d5 {[%clk 0:02:59.7]} 2. c4 {[%clk 0:03:01]} 2...
e6 {[%clk 0:03:00.2]} 3. Nc3 {[%clk 0:02:59.8]} 3... c5 {[%clk 0:03:00.8]} 4.
cxd5 {[%clk 0:02:59.1]} 4... exd5 {[%clk 0:03:01.7]} 5. Nf3 {[%clk 0:02:59.6]}
5... Nc6 {[%clk 0:03:02.3]} 6. g3 {[%clk 0:02:57.9]} 6... Nf6 {[%clk 0:03:02.5]}
7. Bg2 {[%clk 0:02:58.2]} 7... Be7 {[%clk 0:03:03.2]} 8. O-O {[%clk 0:02:57.8]}
8... O-O {[%clk 0:03:03.8]} 9. dxc5 {[%clk 0:02:54.8]} 9... Bxc5 {[%clk
0:03:04.7]} 10. a3 {[%clk 0:02:54.6]} 10... Ne4 {[%clk 0:03:03.1]} 11. Qc2
{[%clk 0:02:15.3]} 11... Nxc3 {[%clk 0:02:16.9]} 12. Qxc3 {[%clk 0:02:14.1]}
12... Be7 {[%clk 0:02:05.7]} 13. Qd3 {[%clk 0:02:11.5]} 13... Bf6 {[%clk
0:02:00.5]} 14. Rd1 {[%clk 0:02:08.5]} 14... Qb6 {[%clk 0:01:10]} 15. Be3 {[%clk
0:01:24.4]} 15... Qxb2 {[%clk 0:00:52.8]} 16. Rab1 {[%clk 0:01:24]} 16... Qa2
{[%clk 0:00:53.1]} 17. Ng5 {[%clk 0:00:37]} 17... Bf5 {[%clk 0:00:09.8]} 18.
Qxf5 {[%clk 0:00:33.3]} 18... Bxg5 {[%clk 0:00:10.3]} 19. Bxd5 {[%clk 0:00:23]}
19... Qxe2 {[%clk 0:00:03.2]} 20. Qxg5 {[%clk 0:00:20.6]} 20... Rad8 {[%clk
0:00:01.9]} 21. Bb3 {[%clk 0:00:13]} 21... h6 {[%clk 0:00:01.3]} 22. Qf4 {[%clk
0:00:12.5]} 1-0

[Event "*** Titled Tuesday Blitz"]
[Site "Chess.com"]
[Date "2020.11.24"]
[Round "3"]
[White "hawes33"]
[Black "Piotrek1979"]
[Result "0-1"]
[WhiteElo "2216"]
[BlackElo "2497"]
[TimeControl "180+1"]
[EndTime "10:44:16 PST"]
[Termination "Piotrek1979 won by checkmate"]

1. e4 {[%clk 0:03:00.9]} 1... c6 {[%clk 0:02:58.8]} 2. Nc3 {[%clk 0:03:00.6]}
2... d5 {[%clk 0:02:58.3]} 3. d4 {[%clk 0:03:01.1]} 3... dxe4 {[%clk 0:02:57.7]}
4. Nxe4 {[%clk 0:03:02]} 4... Bf5 {[%clk 0:02:57.4]} 5. Ng3 {[%clk 0:03:01.4]}
5... Bg6 {[%clk 0:02:57.6]} 6. Nh3 {[%clk 0:03:02.3]} 6... e6 {[%clk 0:02:54.7]}
7. Nf4 {[%clk 0:03:02.3]} 7... Bd6 {[%clk 0:02:54.5]} 8. h4 {[%clk 0:03:02]}
8... Qc7 {[%clk 0:02:46.6]} 9. Nfh5 {[%clk 0:02:47.9]} 9... Bxh5 {[%clk
0:02:43.2]} 10. Nxh5 {[%clk 0:02:47.8]} 10... g6 {[%clk 0:02:43.5]} 11. Qg4
{[%clk 0:02:31]} 11... f5 {[%clk 0:02:42.7]} 12. Qg5 {[%clk 0:02:29.3]} 12...
gxh5 {[%clk 0:02:42.4]} 13. Qxh5+ {[%clk 0:02:29.9]} 13... Qf7 {[%clk
0:02:41.7]} 14. Qf3 {[%clk 0:02:26.7]} 14... Nd7 {[%clk 0:02:31]} 15. Bg5 {[%clk
0:02:24.5]} 15... h6 {[%clk 0:02:29.7]} 16. Be3 {[%clk 0:02:23.4]} 16... Ngf6
{[%clk 0:02:25.8]} 17. Bd3 {[%clk 0:02:22.4]} 17... Nd5 {[%clk 0:02:09.9]} 18.
Bd2 {[%clk 0:02:22.3]} 18... Nb4 {[%clk 0:02:06.5]} 19. Bxb4 {[%clk 0:02:20.9]}
19... Bxb4+ {[%clk 0:02:05.9]} 20. c3 {[%clk 0:02:21.8]} 20... Bd6 {[%clk
0:02:05.6]} 21. O-O-O {[%clk 0:02:21.6]} 21... O-O-O {[%clk 0:02:03.2]} 22. Rhe1
{[%clk 0:02:20.8]} 22... Rde8 {[%clk 0:02:02.2]} 23. Bc4 {[%clk 0:02:20.8]}
23... Nb6 {[%clk 0:01:56.9]} 24. Bb3 {[%clk 0:02:20.8]} 24... Qf6 {[%clk
0:01:50.4]} 25. c4 {[%clk 0:02:20.4]} 25... c5 {[%clk 0:01:49.8]} 26. dxc5
{[%clk 0:02:18.8]} 26... Bxc5 {[%clk 0:01:49.3]} 27. Kb1 {[%clk 0:02:17.3]}
27... Rd8 {[%clk 0:01:38.6]} 28. Bc2 {[%clk 0:02:14.1]} 28... Rxd1+ {[%clk
0:01:36.9]} 29. Qxd1 {[%clk 0:01:57.4]} 29... Rd8 {[%clk 0:01:36.1]} 30. Qe2
{[%clk 0:01:57.5]} 30... Rd6 {[%clk 0:01:30.3]} 31. g3 {[%clk 0:01:57.3]} 31...
Qd4 {[%clk 0:01:08.8]} 32. Rd1 {[%clk 0:01:47.9]} 32... Qxc4 {[%clk 0:01:02.3]}
33. Bd3 {[%clk 0:01:43.7]} 33... Qd4 {[%clk 0:00:49]} 34. Bc2 {[%clk 0:01:43.4]}
34... Qxf2 {[%clk 0:00:41.9]} 35. Qh5 {[%clk 0:01:34.2]} 35... Rxd1+ {[%clk
0:00:40.1]} 36. Bxd1 {[%clk 0:01:35.1]} 36... Qd2 {[%clk 0:00:29.9]} 37. Bc2
{[%clk 0:01:32.9]} 37... Kc7 {[%clk 0:00:23]} 38. Qf7+ {[%clk 0:01:32.3]} 38...
Nd7 {[%clk 0:00:22.7]} 39. Qxe6 {[%clk 0:01:30.1]} 39... Be3 {[%clk 0:00:20]}
40. a3 {[%clk 0:01:29.6]} 40... Qc1+ {[%clk 0:00:19.3]} 41. Ka2 {[%clk
0:01:29.7]} 41... Qxc2 {[%clk 0:00:19.3]} 42. Qxe3 {[%clk 0:01:30]} 42... Qc4+
{[%clk 0:00:19.2]} 43. Kb1 {[%clk 0:01:29.5]} 43... h5 {[%clk 0:00:19.1]} 44.
Qe8 {[%clk 0:01:27.7]} 44... Qe4+ {[%clk 0:00:18.9]} 45. Qxe4 {[%clk 0:01:27.1]}
45... fxe4 {[%clk 0:00:19.8]} 46. Kc2 {[%clk 0:01:27.9]} 46... Kd6 {[%clk
0:00:20]} 47. Kd2 {[%clk 0:01:28.8]} 47... Ke5 {[%clk 0:00:20.3]} 48. Ke3 {[%clk
0:01:29.7]} 48... Nf6 {[%clk 0:00:20.8]} 49. b3 {[%clk 0:01:29.6]} 49... Ng4+
{[%clk 0:00:21.4]} 50. Ke2 {[%clk 0:01:30.2]} 50... Kd4 {[%clk 0:00:22]} 51. Kd2
{[%clk 0:01:30.2]} 51... e3+ {[%clk 0:00:22.9]} 52. Ke2 {[%clk 0:01:30.6]} 52...
Ke4 {[%clk 0:00:23.4]} 53. b4 {[%clk 0:01:30.8]} 53... b5 {[%clk 0:00:22.6]} 54.
a4 {[%clk 0:01:31.7]} 54... bxa4 {[%clk 0:00:22.2]} 55. b5 {[%clk 0:01:32.4]}
55... a3 {[%clk 0:00:22.5]} 56. b6 {[%clk 0:01:32.4]} 56... axb6 {[%clk
0:00:22.7]} 57. Ke1 {[%clk 0:01:32.5]} 57... Kd3 {[%clk 0:00:22.3]} 58. Kf1
{[%clk 0:01:32.2]} 58... Kd2 {[%clk 0:00:21.1]} 59. Kg2 {[%clk 0:01:32.8]} 59...
Ke2 {[%clk 0:00:21.4]} 60. Kh3 {[%clk 0:01:33]} 60... a2 {[%clk 0:00:20.7]} 61.
Kg2 {[%clk 0:01:33.1]} 61... a1=Q {[%clk 0:00:18.9]} 62. Kh3 {[%clk 0:01:34]}
62... Qf1# {[%clk 0:00:18.8]} 0-1

[Event "*** Titled Tuesday Blitz"]
[Site "Chess.com"]
[Date "2020.11.24"]
[Round "3"]
[White "amiralfio"]
[Black "Hercog"]
[Result "0-1"]
[WhiteElo "2485"]
[BlackElo "2283"]
[TimeControl "180+1"]
[EndTime "10:44:16 PST"]
[Termination "Hercog won by resignation"]

1. e4 {[%clk 0:03:00.9]} 1... c6 {[%clk 0:02:59.6]} 2. Nc3 {[%clk 0:02:59.4]}
2... d5 {[%clk 0:02:59.7]} 3. Nf3 {[%clk 0:02:59.5]} 3... Bg4 {[%clk 0:02:59.6]}
4. h3 {[%clk 0:02:59.4]} 4... Bxf3 {[%clk 0:02:59.8]} 5. Qxf3 {[%clk 0:03:00.3]}
5... e6 {[%clk 0:02:59.9]} 6. d3 {[%clk 0:02:57.9]} 6... Nd7 {[%clk 0:02:58.5]}
7. Be2 {[%clk 0:02:57.5]} 7... Ngf6 {[%clk 0:02:55.7]} 8. O-O {[%clk 0:02:53.7]}
8... d4 {[%clk 0:02:55.7]} 9. Nb1 {[%clk 0:02:52.7]} 9... Bd6 {[%clk 0:02:53]}
10. g3 {[%clk 0:02:44.5]} 10... O-O {[%clk 0:02:47.8]} 11. Nd2 {[%clk
0:02:43.1]} 11... b5 {[%clk 0:02:46.4]} 12. a4 {[%clk 0:02:36.9]} 12... a6
{[%clk 0:02:44.5]} 13. Qg2 {[%clk 0:02:31.6]} 13... c5 {[%clk 0:02:42.3]} 14. f4
{[%clk 0:02:24.4]} 14... e5 {[%clk 0:02:42.5]} 15. Nf3 {[%clk 0:02:16]} 15...
Qc7 {[%clk 0:02:24.2]} 16. Nh4 {[%clk 0:02:10.7]} 16... c4 {[%clk 0:02:22.9]}
17. Nf5 {[%clk 0:02:10.2]} 17... cxd3 {[%clk 0:02:20.3]} 18. Bxd3 {[%clk
0:02:02.9]} 18... Nc5 {[%clk 0:02:20.1]} 19. Nxd6 {[%clk 0:01:53.9]} 19... Qxd6
{[%clk 0:02:18.5]} 20. fxe5 {[%clk 0:01:52.7]} 20... Qxe5 {[%clk 0:02:18.6]} 21.
Bf4 {[%clk 0:01:53]} 21... Qe6 {[%clk 0:02:16.1]} 22. axb5 {[%clk 0:01:20.3]}
22... Nxd3 {[%clk 0:02:01.4]} 23. cxd3 {[%clk 0:01:20.3]} 23... axb5 {[%clk
0:02:01.5]} 24. Bg5 {[%clk 0:01:09.5]} 24... Nd7 {[%clk 0:01:56.8]} 25. Bf4
{[%clk 0:00:41.3]} 25... Ra2 {[%clk 0:01:46.2]} 26. Rxa2 {[%clk 0:00:34.5]}
26... Qxa2 {[%clk 0:01:45.9]} 27. Bd6 {[%clk 0:00:33.1]} 27... Rc8 {[%clk
0:01:40.4]} 28. Qf2 {[%clk 0:00:20.4]} 28... Qe6 {[%clk 0:01:27.1]} 29. Qxd4
{[%clk 0:00:20]} 29... Qxh3 {[%clk 0:01:26.2]} 30. Qd5 {[%clk 0:00:18.7]} 30...
Nf6 {[%clk 0:01:24]} 31. Qb7 {[%clk 0:00:07.4]} 31... h6 {[%clk 0:01:03]} 32.
Be5 {[%clk 0:00:05.8]} 32... Rc2 {[%clk 0:00:55.4]} 33. Qb8+ {[%clk 0:00:02.3]}
33... Kh7 {[%clk 0:00:55.2]} 0-1

[Event "*** Titled Tuesday Blitz"]
[Site "Chess.com"]
[Date "2020.11.24"]
[Round "3"]
[White "Klavdia_Nik"]
[Black "YIYUKI"]
[Result "0-1"]
[WhiteElo "2084"]
[BlackElo "2338"]
[TimeControl "180+1"]
[EndTime "10:44:20 PST"]
[Termination "YIYUKI won on time"]

1. Nf3 {[%clk 0:03:00]} 1... d5 {[%clk 0:02:58.1]} 2. c4 {[%clk 0:02:57.3]} 2...
dxc4 {[%clk 0:02:56.8]} 3. Na3 {[%clk 0:02:56.5]} 3... Nf6 {[%clk 0:02:54.2]} 4.
Nxc4 {[%clk 0:02:55.8]} 4... g6 {[%clk 0:02:54.6]} 5. b3 {[%clk 0:02:55.9]} 5...
Bg7 {[%clk 0:02:54.7]} 6. Bb2 {[%clk 0:02:56.6]} 6... O-O {[%clk 0:02:55.2]} 7.
g3 {[%clk 0:02:57]} 7... c5 {[%clk 0:02:52.8]} 8. Bg2 {[%clk 0:02:56.3]} 8...
Nc6 {[%clk 0:02:52.9]} 9. O-O {[%clk 0:02:55.4]} 9... h6 {[%clk 0:02:48.8]} 10.
d3 {[%clk 0:02:50.6]} 10... Be6 {[%clk 0:02:48.4]} 11. Bc3 {[%clk 0:02:37]}
11... Rc8 {[%clk 0:02:44.1]} 12. Qd2 {[%clk 0:02:23.6]} 12... Qd7 {[%clk
0:02:32.4]} 13. Rfe1 {[%clk 0:02:16.1]} 13... Nd4 {[%clk 0:02:31.3]} 14. Qb2
{[%clk 0:02:10.5]} 14... Nd5 {[%clk 0:02:09.3]} 15. Bxd4 {[%clk 0:02:05.4]}
15... cxd4 {[%clk 0:02:07.8]} 16. Nce5 {[%clk 0:01:55.2]} 16... Qd6 {[%clk
0:01:58.8]} 17. Qxd4 {[%clk 0:01:46.4]} 17... Nb4 {[%clk 0:01:38]} 18. Qb2
{[%clk 0:00:22]} 18... Nc2 {[%clk 0:01:11.3]} 19. Rec1 {[%clk 0:00:13]} 19...
Nxa1 {[%clk 0:01:07.7]} 20. Rxa1 {[%clk 0:00:12.6]} 20... Rc7 {[%clk 0:00:48.7]}
21. d4 {[%clk 0:00:11.1]} 21... Rfc8 {[%clk 0:00:48.4]} 22. Qd2 {[%clk 0:00:06]}
22... Rc2 {[%clk 0:00:47.5]} 23. Qd3 {[%clk 0:00:06.4]} 23... Bf5 {[%clk
0:00:35.8]} 24. e4 {[%clk 0:00:04.6]} 24... R8c3 {[%clk 0:00:35.7]} 25. Qb5
{[%clk 0:00:02.8]} 25... Bxe4 {[%clk 0:00:35.7]} 26. Qe8+ {[%clk 0:00:02.5]}
26... Kh7 {[%clk 0:00:35.9]} 27. Qxf7 {[%clk 0:00:02.5]} 27... Qf6 {[%clk
0:00:28.5]} 0-1

[Event "*** Titled Tuesday Blitz"]
[Site "Chess.com"]
[Date "2020.11.24"]
[Round "3"]
[White "baki83"]
[Black "Sergienko_Sergey"]
[Result "1-0"]
[WhiteElo "2733"]
[BlackElo "2346"]
[TimeControl "180+1"]
[EndTime "10:44:21 PST"]
[Termination "baki83 won by resignation"]

1. e4 {[%clk 0:03:00.9]} 1... c5 {[%clk 0:02:59.4]} 2. Nf3 {[%clk 0:03:01.2]}
2... a6 {[%clk 0:02:57.6]} 3. c3 {[%clk 0:03:00.2]} 3... e6 {[%clk 0:02:56.8]}
4. d4 {[%clk 0:03:00]} 4... d5 {[%clk 0:02:56.3]} 5. exd5 {[%clk 0:02:59.7]}
5... exd5 {[%clk 0:02:56.3]} 6. Bd3 {[%clk 0:03:00.3]} 6... c4 {[%clk
0:02:55.8]} 7. Bc2 {[%clk 0:02:58.4]} 7... Bd6 {[%clk 0:02:55.1]} 8. O-O {[%clk
0:02:57.1]} 8... Ne7 {[%clk 0:02:55]} 9. b3 {[%clk 0:02:57.5]} 9... cxb3 {[%clk
0:02:52.6]} 10. axb3 {[%clk 0:02:56.9]} 10... O-O {[%clk 0:02:45.5]} 11. c4
{[%clk 0:02:56.1]} 11... Bf5 {[%clk 0:02:33.4]} 12. Nc3 {[%clk 0:02:49.2]} 12...
Bxc2 {[%clk 0:02:21.4]} 13. Qxc2 {[%clk 0:02:50.1]} 13... Nbc6 {[%clk
0:02:17.1]} 14. Re1 {[%clk 0:02:46.4]} 14... Rc8 {[%clk 0:02:10.1]} 15. Bg5
{[%clk 0:02:39.5]} 15... f6 {[%clk 0:02:01.2]} 16. Bh4 {[%clk 0:02:38.1]} 16...
Qd7 {[%clk 0:01:54]} 17. c5 {[%clk 0:02:18.5]} 17... Bc7 {[%clk 0:01:46.7]} 18.
Bg3 {[%clk 0:02:19]} 18... Bxg3 {[%clk 0:01:43.4]} 19. hxg3 {[%clk 0:02:19.9]}
19... Nf5 {[%clk 0:01:37.9]} 20. Qd2 {[%clk 0:02:14.4]} 20... g5 {[%clk
0:01:06.7]} 21. g4 {[%clk 0:01:55.3]} 21... Ng7 {[%clk 0:00:59.9]} 22. Nh2
{[%clk 0:01:53.5]} 22... Rce8 {[%clk 0:00:56]} 23. Re3 {[%clk 0:01:38.8]} 23...
Rxe3 {[%clk 0:00:47.2]} 24. fxe3 {[%clk 0:01:39.7]} 24... h5 {[%clk 0:00:36.6]}
25. gxh5 {[%clk 0:01:34]} 25... Nxh5 {[%clk 0:00:36.4]} 26. Qe2 {[%clk
0:01:33.6]} 26... Ng7 {[%clk 0:00:34.6]} 27. Qf3 {[%clk 0:01:33]} 27... Ne7
{[%clk 0:00:25.9]} 28. Ng4 {[%clk 0:01:32.3]} 28... Qe6 {[%clk 0:00:18.8]} 29.
Rf1 {[%clk 0:01:23.7]} 29... f5 {[%clk 0:00:18.1]} 30. Ne5 {[%clk 0:01:23.7]}
30... f4 {[%clk 0:00:15.8]} 31. b4 {[%clk 0:01:15.6]} 31... Nef5 {[%clk
0:00:14.3]} 32. Nxd5 {[%clk 0:01:10.4]} 32... fxe3 {[%clk 0:00:13.6]} 33. Nxe3
{[%clk 0:01:06.9]} 33... g4 {[%clk 0:00:11.3]} 34. Qf4 {[%clk 0:01:03.2]} 34...
Rf6 {[%clk 0:00:10]} 35. N3xg4 {[%clk 0:00:58.4]} 35... Rf8 {[%clk 0:00:07]} 36.
Qg5 {[%clk 0:00:53.7]} 36... Qd5 {[%clk 0:00:05.1]} 37. Nh6+ {[%clk 0:00:52.2]}
37... Nxh6 {[%clk 0:00:04.2]} 38. Rxf8+ {[%clk 0:00:51.1]} 38... Kxf8 {[%clk
0:00:04]} 39. Ng6+ {[%clk 0:00:51.5]} 1-0

[Event "*** Titled Tuesday Blitz"]
[Site "Chess.com"]
[Date "2020.11.24"]
[Round "3"]
[White "zala02"]
[Black "FLamps8"]
[Result "0-1"]
[WhiteElo "2149"]
[BlackElo "2478"]
[TimeControl "180+1"]
[EndTime "10:44:22 PST"]
[Termination "FLamps8 won by resignation"]

1. d4 {[%clk 0:03:00.9]} 1... d5 {[%clk 0:02:59.7]} 2. c4 {[%clk 0:03:00.8]}
2... c6 {[%clk 0:03:00.3]} 3. Nf3 {[%clk 0:03:00.9]} 3... Nf6 {[%clk 0:03:00.9]}
4. e3 {[%clk 0:03:00]} 4... a6 {[%clk 0:03:00.6]} 5. Nc3 {[%clk 0:02:47.3]} 5...
b5 {[%clk 0:03:00.2]} 6. b3 {[%clk 0:02:47.7]} 6... Bg4 {[%clk 0:02:59.9]} 7.
Bb2 {[%clk 0:02:40.7]} 7... e6 {[%clk 0:02:46.8]} 8. h3 {[%clk 0:02:40.3]} 8...
Bxf3 {[%clk 0:02:39.2]} 9. Qxf3 {[%clk 0:02:41.2]} 9... bxc4 {[%clk 0:02:39.8]}
10. bxc4 {[%clk 0:02:40.9]} 10... Qb6 {[%clk 0:02:39.3]} 11. Rb1 {[%clk
0:02:36]} 11... Bb4 {[%clk 0:02:38.8]} 12. Rc1 {[%clk 0:01:52.6]} 12... Ba5
{[%clk 0:02:23.9]} 13. Ba1 {[%clk 0:01:40.7]} 13... Ne4 {[%clk 0:02:23.5]} 14.
Bd3 {[%clk 0:01:37]} 14... Nxc3 {[%clk 0:02:14.6]} 15. Bxc3 {[%clk 0:01:37.9]}
15... Qb2 {[%clk 0:02:14.4]} 16. O-O {[%clk 0:01:05.1]} 16... Bxc3 {[%clk
0:02:12]} 17. Rb1 {[%clk 0:01:04.3]} 17... Qa3 {[%clk 0:02:02.3]} 18. cxd5
{[%clk 0:00:35.2]} 18... cxd5 {[%clk 0:01:59.9]} 19. e4 {[%clk 0:00:28.1]} 19...
Nc6 {[%clk 0:01:20.5]} 20. exd5 {[%clk 0:00:17.9]} 20... Nxd4 {[%clk 0:01:20.1]}
21. Qe4 {[%clk 0:00:18.6]} 21... f5 {[%clk 0:01:13.1]} 22. Qe3 {[%clk
0:00:18.7]} 22... O-O {[%clk 0:01:00.4]} 23. dxe6 {[%clk 0:00:17]} 23... Rae8
{[%clk 0:00:59.4]} 24. Bc4 {[%clk 0:00:12.1]} 24... Re7 {[%clk 0:00:46.1]} 25.
Rfd1 {[%clk 0:00:06.4]} 25... f4 {[%clk 0:00:38.8]} 26. Qe4 {[%clk 0:00:03.4]}
26... f3 {[%clk 0:00:39]} 27. Rxd4 {[%clk 0:00:02.5]} 27... Bxd4 {[%clk
0:00:36.6]} 28. Qxd4 {[%clk 0:00:03.4]} 28... fxg2 {[%clk 0:00:33.8]} 29. Qg4
{[%clk 0:00:01.9]} 29... Qc5 {[%clk 0:00:29.2]} 30. Rb3 {[%clk 0:00:01.4]} 30...
Qxf2+ {[%clk 0:00:28.5]} 0-1

[Event "*** Titled Tuesday Blitz"]
[Site "Chess.com"]
[Date "2020.11.24"]
[Round "3"]
[White "orestn"]
[Black "alexrustemov"]
[Result "0-1"]
[WhiteElo "2289"]
[BlackElo "2648"]
[TimeControl "180+1"]
[EndTime "10:44:22 PST"]
[Termination "alexrustemov won by resignation"]

1. e4 {[%clk 0:02:38.8]} 1... e6 {[%clk 0:02:58.6]} 2. d4 {[%clk 0:02:38.2]}
2... d5 {[%clk 0:02:58.2]} 3. e5 {[%clk 0:02:37.5]} 3... c5 {[%clk 0:02:57.5]}
4. c3 {[%clk 0:02:38.4]} 4... Qb6 {[%clk 0:02:57.3]} 5. Nf3 {[%clk 0:02:39.3]}
5... Bd7 {[%clk 0:02:57.1]} 6. Bd3 {[%clk 0:02:38.4]} 6... Bb5 {[%clk 0:02:56]}
7. dxc5 {[%clk 0:02:36]} 7... Bxc5 {[%clk 0:02:55.1]} 8. b4 {[%clk 0:02:35.8]}
8... Bxd3 {[%clk 0:02:52.9]} 9. Qxd3 {[%clk 0:02:32]} 9... Be7 {[%clk
0:02:52.9]} 10. Be3 {[%clk 0:02:30.9]} 10... Qa6 {[%clk 0:02:52.1]} 11. Qxa6
{[%clk 0:02:26.1]} 11... Nxa6 {[%clk 0:02:50.5]} 12. Nd4 {[%clk 0:02:05.2]}
12... Kd7 {[%clk 0:02:40.8]} 13. Ke2 {[%clk 0:01:49.4]} 13... f6 {[%clk
0:02:27.9]} 14. f4 {[%clk 0:01:45.1]} 14... Nh6 {[%clk 0:02:22.2]} 15. Nd2
{[%clk 0:01:35.3]} 15... fxe5 {[%clk 0:02:20]} 16. fxe5 {[%clk 0:01:34.7]} 16...
Nf7 {[%clk 0:02:20.4]} 17. N2f3 {[%clk 0:01:29.7]} 17... Rhc8 {[%clk 0:02:15.8]}
18. Rhc1 {[%clk 0:01:23.3]} 18... Rc4 {[%clk 0:02:13.1]} 19. Nb5 {[%clk
0:01:11.3]} 19... Re4 {[%clk 0:02:03.8]} 20. Kd3 {[%clk 0:01:04.7]} 20... Nxe5+
{[%clk 0:01:52.2]} 21. Nxe5+ {[%clk 0:01:03.9]} 21... Rxe5 {[%clk 0:01:52.7]}
22. Bxa7 {[%clk 0:00:52.5]} 22... Rg5 {[%clk 0:01:08.6]} 23. g3 {[%clk
0:00:51.5]} 23... Rf5 {[%clk 0:00:58.1]} 24. a4 {[%clk 0:00:42.3]} 24... e5
{[%clk 0:00:48.8]} 25. Rf1 {[%clk 0:00:36.1]} 25... Raf8 {[%clk 0:00:48]} 26.
Rxf5 {[%clk 0:00:28.8]} 26... Rxf5 {[%clk 0:00:48.9]} 27. Ke2 {[%clk 0:00:19.4]}
27... Rh5 {[%clk 0:00:46.4]} 28. h4 {[%clk 0:00:18.5]} 28... g5 {[%clk
0:00:46.2]} 29. hxg5 {[%clk 0:00:17.9]} 29... Rh2+ {[%clk 0:00:45.2]} 30. Kf3
{[%clk 0:00:17.8]} 30... Bxg5 {[%clk 0:00:45.4]} 31. Kg4 {[%clk 0:00:17.8]}
31... Be7 {[%clk 0:00:43.8]} 32. Rf1 {[%clk 0:00:17.2]} 32... Ke6 {[%clk
0:00:44]} 33. Bb6 {[%clk 0:00:15.5]} 33... h5+ {[%clk 0:00:38.4]} 34. Kf3 {[%clk
0:00:14.4]} 34... Bg5 {[%clk 0:00:38.3]} 35. Bf2 {[%clk 0:00:08.5]} 35... e4+
{[%clk 0:00:36.3]} 36. Ke2 {[%clk 0:00:09.4]} 36... e3 {[%clk 0:00:36.6]} 37.
Nd4+ {[%clk 0:00:09.3]} 0-1

[Event "*** Titled Tuesday Blitz"]
[Site "Chess.com"]
[Date "2020.11.24"]
[Round "3"]
[White "LaPorfia"]
[Black "TurboSteen"]
[Result "1-0"]
[WhiteElo "2301"]
[BlackElo "1969"]
[TimeControl "180+1"]
[EndTime "10:44:22 PST"]
[Termination "LaPorfia won by resignation"]

1. d4 {[%clk 0:03:00.9]} 1... Nf6 {[%clk 0:02:54.3]} 2. Nf3 {[%clk 0:03:00.6]}
2... e6 {[%clk 0:02:52.7]} 3. Bf4 {[%clk 0:03:00.3]} 3... d5 {[%clk 0:02:51.1]}
4. Nbd2 {[%clk 0:02:59.8]} 4... c5 {[%clk 0:02:49.6]} 5. e3 {[%clk 0:02:58.8]}
5... Nc6 {[%clk 0:02:48]} 6. c3 {[%clk 0:02:58.7]} 6... Qb6 {[%clk 0:02:47]} 7.
Rb1 {[%clk 0:02:58.2]} 7... Be7 {[%clk 0:02:43.7]} 8. Bd3 {[%clk 0:02:56.9]}
8... Nh5 {[%clk 0:02:40.5]} 9. Bg3 {[%clk 0:02:52.9]} 9... Bd7 {[%clk
0:02:36.4]} 10. Ne5 {[%clk 0:02:51.9]} 10... Nxg3 {[%clk 0:02:33.4]} 11. hxg3
{[%clk 0:02:52.8]} 11... Nxe5 {[%clk 0:02:31.8]} 12. dxe5 {[%clk 0:02:53.7]}
12... g6 {[%clk 0:02:30.6]} 13. Qf3 {[%clk 0:02:43.4]} 13... Bb5 {[%clk
0:02:24.6]} 14. Bxb5+ {[%clk 0:02:37.7]} 14... Qxb5 {[%clk 0:02:22.2]} 15. e4
{[%clk 0:02:37.7]} 15... Bg5 {[%clk 0:02:09.2]} 16. exd5 {[%clk 0:02:24.9]}
16... Bxd2+ {[%clk 0:02:05.4]} 17. Kxd2 {[%clk 0:02:24.8]} 17... O-O-O {[%clk
0:02:05.9]} 18. d6 {[%clk 0:02:23.2]} 18... c4 {[%clk 0:02:01.6]} 19. Rhe1
{[%clk 0:02:15.7]} 19... f6 {[%clk 0:01:51.6]} 20. Qxf6 {[%clk 0:02:10.8]} 20...
Qd5+ {[%clk 0:01:48.9]} 21. Kc1 {[%clk 0:01:58]} 21... Rhf8 {[%clk 0:01:47.1]}
22. Qe7 {[%clk 0:01:47.9]} 22... Kb8 {[%clk 0:01:14.5]} 23. f4 {[%clk
0:01:35.1]} 23... Qxg2 {[%clk 0:01:02.3]} 24. Qc7+ {[%clk 0:01:16.6]} 24... Ka8
{[%clk 0:00:59.2]} 25. Qxc4 {[%clk 0:01:16.7]} 25... Qxg3 {[%clk 0:00:55.5]} 26.
Rf1 {[%clk 0:01:15.8]} 26... g5 {[%clk 0:00:33.7]} 27. Kc2 {[%clk 0:01:01]}
27... Rxf4 {[%clk 0:00:20.5]} 28. Rxf4 {[%clk 0:01:00]} 28... Qxf4 {[%clk
0:00:19.3]} 29. Qxf4 {[%clk 0:00:59.4]} 29... gxf4 {[%clk 0:00:18.3]} 30. Rh1
{[%clk 0:00:53.9]} 30... Rd7 {[%clk 0:00:16.2]} 31. Kd3 {[%clk 0:00:53]} 31...
Kb8 {[%clk 0:00:14]} 32. Ke4 {[%clk 0:00:53]} 32... Rf7 {[%clk 0:00:13.1]} 33.
Rf1 {[%clk 0:00:41.7]} 33... Kc8 {[%clk 0:00:11.1]} 34. Rxf4 {[%clk 0:00:40]}
34... Rxf4+ {[%clk 0:00:09.7]} 35. Kxf4 {[%clk 0:00:40.9]} 35... Kd7 {[%clk
0:00:08.8]} 36. Kg5 {[%clk 0:00:40.4]} 1-0